bitfinex/quotes_ETHUSD_20220309
["timestamp","ask_amount","ask_price","bid_price","bid_amount"]
[1646803676538,1.63910515,2714.8,2714.5,0.16575114]
[1646803676738,1.63910515,2714.8,2714.6,0.16575114]
[1646803676939,1.63910515,2714.8,2714.7,0.16575114]
[1646803677139,2.98064285,2714.8,2714.7,0.16575114]
[1646803677340,2.98064285,2714.8,2714.2,0.83288344]
[1646803677738,2.98064285,2714.8,2714.3,0.83288344]
[1646803677739,1.63910515,2714.8,2714.3,0.83288344]
[1646803677939,1.63910515,2714.8,2714.4,0.16575114]
[1646803678142,1.63910515,2714.8,2714.5,0.16575114]
[1646803678339,1.63910515,2714.8,2714.6,0.16575114]
[1646803678538,1.63910515,2714.8,2714.7,0.16575114]
[1646803678738,2.98218264,2714.8,2714.7,0.16575114]
[1646803678940,1.63910515,2714.8,2714.7,0.16575114]
[1646803679941,2.97634611,2714.8,2714.7,0.16575114]
[1646803680389,1.63910515,2714.8,2714.7,0.16575114]
[1646803681691,0.71787515,2714.8,2714.7,0.16575114]
[1646803683497,2.05468902,2714.8,2714.7,0.16575114]
[1646803685360,0.71787515,2714.8,2714.7,0.16575114]
[1646803687363,2.05611189,2714.8,2714.7,0.16575114]
[1646803696689,0.71787515,2714.8,2714.7,0.16575114]
[1646803697290,2.05763449,2714.8,2714.7,0.16575114]
[1646803697490,2.05764482,2714.8,2714.7,0.16575114]
[1646803697691,0.71787515,2714.8,2714.7,0.16575114]
[1646803697992,1.89932995,2714.8,2714.7,0.16575114]
[1646803701342,1.33978753,2714.8,2714.7,0.16575114]
[1646803707544,0.00198485,2715.1,2714.7,0.83288344]
[1646803707745,0.00198485,2715.1,2714.8,0.83288344]
[1646803707944,2.55921783,2715.6,2714.9,0.16575114]
[1646803708144,0.00198485,2715.1,2715.0,0.16575114]
[1646803708948,0.00198485,2715.1,2714.8,0.6671323]
[1646803709147,1.32471783,2715.3,2714.8,0.6671323]
[1646803709349,1.32670286,2715.2,2714.8,1.13288344]
[1646803709551,1.32471783,2715.1,2714.9,0.16575114]
[1646803709751,0.00198503,2715.2,2714.9,0.83288344]
[1646803710192,1.32474532,2715.3,2715.0,0.16575114]
[1646803710392,1.32474532,2715.2,2715.1,0.16575114]
[1646803710595,0.00198503,2715.2,2715.0,0.83288344]
[1646803710793,0.00198503,2715.2,2715.1,0.16575114]
[1646803710994,1.32474532,2715.4,2715.1,0.16575114]
[1646803711196,1.32474532,2715.3,2715.2,0.16575114]
[1646803711692,0.05508772,2715.7,2715.0,0.16575114]
[1646803711693,1.32474532,2715.6,2715.0,0.16575114]
[1646803711893,2.37773488,2715.5,2715.1,0.16575114]
[1646803712097,1.32474532,2715.4,2715.2,0.16575114]
[1646803712294,1.32474532,2715.4,2715.3,0.16575114]
[1646803712495,1.32474532,2715.4,2715.0,0.6671323]
[1646803712695,1.32474532,2715.4,2715.1,0.16575114]
[1646803712894,1.32474532,2715.4,2715.2,0.16575114]
[1646803713095,1.32474532,2715.4,2715.3,0.16575114]
[1646803713595,1.32474532,2715.4,2714.9,0.6671323]
[1646803713844,1.32474532,2715.4,2714.9,0.16575114]
[1646803713845,4.82474532,2715.4,2714.9,0.16575114]
[1646803714043,1.32474532,2715.3,2715.0,0.16575114]
[1646803714239,1.32474532,2715.3,2715.1,0.16575114]
[1646803714439,1.32474532,2715.3,2715.2,0.16575114]
[1646803714643,1.32474532,2715.3,2714.8,0.16575114]
[1646803714843,3.5,2715.2,2714.8,0.16575114]
[1646803715044,0.00569792,2715.8,2715.1,17.6105775]
[1646803715249,0.04933778,2715.9,2715.5,0.3676]
[1646803715250,0.01143154,2715.9,2715.5,0.3676]
[1646803715443,0.03986984,2716.0,2715.7,6.0]
[1646803715644,0.03986984,2716.0,2715.8,0.445]
[1646803716041,0.03986984,2716.0,2715.8,2.0329343]
[1646803716242,0.03986984,2716.0,2715.8,2.65020917]
[1646803716442,0.03986984,2716.0,2715.9,3.5]
[1646803716645,0.03986984,2716.0,2715.9,0.445]
[1646803717148,0.03986984,2716.0,2715.9,12.0426]
[1646803717444,0.03986984,2716.0,2715.9,15.5426]
[1646803718192,0.09372362,2716.5,2716.0,6.0]
[1646803718496,0.08495114,2716.8,2716.4,12.51785]
[1646803718497,0.0051464,2716.6,2716.4,12.51785]
[1646803718694,0.0051464,2716.6,2716.5,0.445]
[1646803719295,0.0051464,2716.6,2716.5,15.5426]
[1646803719496,0.07586234,2716.9,2716.5,7.0726592]
[1646803719497,0.0102928,2716.9,2716.5,7.0726592]
[1646803719700,0.0102928,2716.9,2716.5,18.3026592]
[1646803719895,0.0102928,2716.9,2716.5,15.41993407]
[1646803720097,0.0102928,2716.9,2716.8,0.3676]
[1646803720295,0.0102928,2716.9,2716.8,1.36498]
[1646803721352,0.0102928,2716.9,2716.8,4.86498]
[1646803721740,0.0102928,2716.9,2716.8,1.36498]
[1646803722139,0.10153424,2716.9,2716.8,1.36498]
[1646803724948,0.10153424,2716.9,2716.8,0.91998]
[1646803726391,0.10153424,2716.9,2716.7,2.2199621]
[1646803726592,0.09663099,2716.9,2716.7,2.2199621]
[1646803727397,0.09856676,2716.9,2716.7,2.2199621]
[1646803728199,0.09663099,2716.9,2716.7,2.2199621]
[1646803728499,0.09844668,2716.9,2716.7,4.0600621]
[1646803729543,0.09663099,2716.9,2716.7,4.0600621]
[1646803730345,0.09663099,2716.9,2716.8,0.92004]
[1646803731347,0.09663099,2716.9,2716.7,4.0600621]
[1646803732147,0.10837326,2716.9,2716.7,4.0600621]
[1646803732798,0.10837326,2716.9,2716.8,0.92004]
[1646803734403,0.10643749,2716.9,2716.8,0.92004]
[1646803735002,0.10643749,2716.9,2716.7,2.2199621]
[1646803735703,0.10818089,2716.9,2716.7,2.2199621]
[1646803735902,0.10818089,2716.9,2716.7,1.3]
[1646803736102,0.10818089,2716.9,2716.7,1.0]
[1646803736749,0.10643749,2716.9,2716.7,1.0]
[1646803736949,0.10818089,2716.9,2716.7,1.0]
[1646803737951,0.10643749,2716.9,2716.7,1.0]
[1646803738148,0.04888393,2716.9,2716.7,1.0]
[1646803739151,0.04714053,2716.9,2716.7,1.0]
[1646803739360,0.04890305,2716.9,2716.7,1.0]
[1646803739552,0.04890305,2716.9,2716.4,2.47474562]
[1646803740292,0.04714053,2716.9,2716.4,2.47474562]
[1646803740695,0.04890295,2716.9,2716.4,2.47474562]
[1646803740895,0.04890295,2716.9,2716.4,3.39503892]
[1646803741293,0.04890295,2716.9,2716.4,0.9202933]
[1646803741496,0.04714053,2716.9,2716.4,0.9202933]
[1646803741695,0.04890295,2716.9,2716.5,0.9202]
[1646803741898,0.04890295,2716.9,2716.3,4.27934]
[1646803741899,0.04890295,2716.9,2716.4,0.1839]
[1646803742701,0.04714053,2716.9,2716.4,0.1839]
[1646803742900,0.0490762,2716.9,2716.4,0.1839]
[1646803743300,0.0490762,2716.9,2716.5,2.1403259]
[1646803743948,0.04714053,2716.9,2716.5,2.1403259]
[1646803744152,0.04907623,2716.9,2716.5,2.1403259]
[1646803744949,0.04907623,2716.9,2716.6,0.92016]
[1646803745552,0.04907623,2716.9,2716.5,2.1403259]
[1646803746251,0.04714053,2716.9,2716.6,1.22015]
[1646803746652,0.04885968,2716.9,2716.6,1.22015]
[1646803746854,0.0303921,2716.9,2716.7,6.0]
[1646803747053,0.05056784,2717.0,2716.9,6.0]
[1646803747054,0.03177384,2717.0,2716.9,6.0]
[1646803747252,0.03177384,2717.0,2716.9,9.945]
[1646803747452,0.03177384,2717.0,2716.9,10.245]
[1646803748097,0.03177384,2717.0,2716.9,11.16491]
[1646803748901,0.03177384,2717.0,2716.9,5.16491]
[1646803749102,0.03177384,2717.0,2716.9,1.745]
[1646803749303,0.03177384,2717.0,2716.9,2.66501]
[1646803750704,0.03177384,2717.0,2716.9,3.08792792]
[1646803750908,0.03177384,2717.0,2716.9,0.72291792]
[1646803751103,0.03177384,2717.0,2716.9,0.3]
[1646803751358,0.03177384,2717.0,2716.6,1.520154]
[1646803751543,0.03177384,2717.0,2716.7,0.43239812]
[1646803752147,0.03177384,2717.0,2716.7,1.35250812]
[1646803752344,0.03177384,2717.0,2716.8,0.43239812]
[1646803752543,0.0337053,2717.0,2716.8,0.43239812]
[1646803752744,0.0337053,2717.0,2716.8,0.73239812]
[1646803752946,0.0337053,2717.0,2716.9,0.43239812]
[1646803753349,0.0337053,2717.0,2716.9,0.3]
[1646803753550,0.03177384,2717.0,2716.9,0.73239812]
[1646803755195,0.03177384,2717.0,2716.9,0.43239812]
[1646803756597,0.03177384,2717.0,2716.9,0.73239812]
[1646803757801,0.03177384,2717.0,2716.9,0.43239812]
[1646803758003,0.02711363,2717.1,2716.8,0.43239812]
[1646803758602,1.05549376,2717.0,2716.9,0.43239812]
[1646803758865,1.05549376,2717.0,2716.7,0.43239812]
[1646803759056,1.05549376,2717.0,2716.8,0.43239812]
[1646803759257,1.05549376,2717.0,2716.4,1.1824]
[1646803759456,1.05549376,2717.0,2716.5,0.44377841]
[1646803759657,1.05549376,2717.0,2716.6,0.44377841]
[1646803759860,1.05742523,2717.0,2716.7,0.44377841]
[1646803760058,1.05742523,2717.0,2716.8,0.44377841]
[1646803760260,1.05742523,2717.0,2716.9,0.44377841]
[1646803760761,1.05549376,2717.0,2716.9,0.44377841]
[1646803760961,1.05549376,2717.0,2716.3,1.11365186]
[1646803762162,1.05723314,2717.0,2716.4,0.9202795]
[1646803762361,1.05723314,2717.0,2716.5,0.44377841]
[1646803763095,1.05549376,2717.0,2716.5,0.44377841]
[1646803763299,1.05723321,2717.0,2716.5,0.44377841]
[1646803763700,1.05723321,2717.0,2716.5,1.11365186]
[1646803764299,1.05549376,2717.0,2716.6,0.44377841]
[1646803764499,1.05549376,2717.0,2716.7,0.44377841]
[1646803764500,1.05723321,2717.0,2716.7,0.44377841]
[1646803764700,1.05723321,2717.0,2716.8,0.44377841]
[1646803764899,1.05723321,2717.0,2716.9,0.44377841]
[1646803765600,1.05549376,2717.0,2716.6,0.44377841]
[1646803765799,1.05549376,2717.0,2716.7,0.44377841]
[1646803766000,1.05549376,2717.0,2716.8,0.44377841]
[1646803766201,1.05549376,2717.0,2716.9,0.44377841]
[1646803766644,4.55549376,2717.0,2716.3,1.11365186]
[1646803766848,4.55549376,2717.0,2716.4,0.44377841]
[1646803766849,1.05897551,2716.9,2716.4,0.44377841]
[1646803767049,1.05897551,2716.9,2716.5,0.44377841]
[1646803767250,1.05897551,2716.9,2716.6,0.44377841]
[1646803767449,1.05897551,2716.9,2716.7,0.44377841]
[1646803767649,1.05897551,2716.9,2716.8,0.44377841]
[1646803768050,1.05897551,2716.9,2716.3,1.11365186]
[1646803768251,1.11630468,2716.7,2716.3,0.44377841]
[1646803768450,1.05897551,2716.6,2716.3,0.44377841]
[1646803768651,1.05897551,2716.5,2716.3,0.44377841]
[1646803768849,0.00193143,2717.0,2716.3,2.97405123]
[1646803769053,1.05871844,2717.0,2716.4,0.44377841]
[1646803769250,1.05871844,2717.0,2716.4,2.97392899]
[1646803769450,3.5,2716.9,2716.5,0.44377841]
[1646803769652,1.05871844,2716.8,2716.5,0.44377841]
[1646803771897,4.55871844,2716.8,2716.5,0.44377841]
[1646803772097,1.05871844,2716.7,2716.5,0.44377841]
[1646803772398,1.05871844,2716.6,2716.5,0.44377841]
[1646803774852,0.00181146,2717.0,2716.5,0.44377841]
[1646803775051,0.03921752,2717.1,2716.5,0.44377841]
[1646803775252,1.04870917,2717.0,2716.5,0.44377841]
[1646803775451,1.05052063,2717.0,2716.5,0.44377841]
[1646803776351,1.04870917,2717.0,2716.5,0.44377841]
[1646803776551,1.05064056,2717.0,2716.5,0.44377841]
[1646803777151,1.05064056,2717.0,2716.5,1.36399411]
[1646803777351,1.05064056,2717.0,2716.6,0.44377841]
[1646803777600,1.04870917,2717.0,2716.6,0.44377841]
[1646803777803,1.05064056,2717.0,2716.6,0.44377841]
[1646803778805,1.04870917,2717.0,2716.6,0.44377841]
[1646803779003,1.0506406,2717.0,2716.6,0.44377841]
[1646803780004,1.04870917,2717.0,2716.6,0.44377841]
[1646803780203,1.0506406,2717.0,2716.6,0.44377841]
[1646803782157,1.0506406,2717.0,2716.7,0.44377841]
[1646803782348,1.04870917,2717.0,2716.8,0.44377841]
[1646803782547,1.04870917,2717.0,2716.9,0.44377841]
[1646803782748,1.0506406,2717.0,2716.9,0.44377841]
[1646803782948,1.0506406,2717.0,2716.5,0.44377841]
[1646803783148,1.0506406,2717.0,2716.6,0.44377841]
[1646803783350,1.0506406,2717.0,2716.7,0.44377841]
[1646803783548,1.0506406,2717.0,2716.8,0.44377841]
[1646803783749,1.05245218,2717.0,2716.9,0.44377841]
[1646803783952,1.05052075,2717.0,2716.5,0.44377841]
[1646803784153,0.00181158,2717.0,2716.5,0.44377841]
[1646803784354,1.04477565,2717.0,2716.5,0.44377841]
[1646803784554,0.00181158,2717.0,2716.5,0.44377841]
[1646803784756,0.03921752,2717.1,2716.5,0.44377841]
[1646803784953,0.03921752,2717.1,2717.0,0.00110959]
[1646803785196,1.0822361,2717.1,2717.0,0.00110959]
[1646803788303,4.5822361,2717.1,2717.0,0.00110959]
[1646803790151,1.0822361,2717.1,2717.0,0.00110959]
[1646803791254,4.5822361,2717.1,2717.0,0.00110959]
[1646803792458,1.0822361,2717.1,2717.0,0.00110959]
[1646803798851,1.0822361,2717.1,2717.0,0.444888]
[1646803799055,1.0822361,2717.1,2717.0,0.00110959]
[1646803800897,1.0822361,2717.1,2717.0,0.444888]
[1646803801101,1.0822361,2717.1,2717.0,0.00110959]
[1646803801297,1.08071367,2717.1,2717.0,0.00110959]
[1646803802504,1.08071367,2717.1,2717.0,0.444888]
[1646803802908,4.58071367,2717.1,2716.5,3.08355857]
[1646803803104,4.58071367,2717.1,2716.5,6.11308795]
[1646803803105,5.129083,2717.1,2716.5,6.11308795]
[1646803803303,0.67092791,2717.0,2716.5,8.64311629]
[1646803803505,3.5,2716.9,2716.5,8.64311629]
[1646803803859,3.5,2716.9,2716.5,3.69940283]
[1646803804052,3.0,2716.7,2716.1,3.08355857]
[1646803804253,3.0,2716.7,2715.8,0.90221064]
[1646803804254,6.0,2716.4,2715.8,0.67764385]
[1646803804455,3.0,2716.2,2715.3,7.544]
[1646803804651,3.0,2716.0,2715.1,0.1841]
[1646803804857,3.5,2715.9,2714.9,0.1841]
[1646803805051,1.08533173,2715.2,2714.9,0.1841]
[1646803805355,1.84231,2715.3,2715.2,0.51720634]
[1646803806555,4.42114,2715.7,2715.2,0.51720634]
[1646803807358,1.12495377,2715.4,2715.2,0.51720634]
[1646803808005,1.12495377,2715.4,2715.3,0.00564606]
[1646803808210,2.5,2715.3,2715.2,0.4728524]
[1646803808405,6.0,2715.3,2715.2,0.4728524]
[1646803809105,7.7161528,2715.3,2715.2,0.4728524]
[1646803809404,9.4323056,2715.3,2715.2,0.4728524]
[1646803810812,5.9323056,2715.3,2715.2,0.4728524]
[1646803811009,3.4323056,2715.3,2715.2,0.4728524]
[1646803811854,6.9323056,2715.3,2715.2,0.4728524]
[1646803812054,3.4323056,2715.3,2715.2,0.4728524]
[1646803813655,3.4323056,2715.3,2715.2,0.97868468]
[1646803818112,4.35358632,2715.3,2715.2,0.97868468]
[1646803818513,3.4323056,2715.3,2715.2,0.97868468]
[1646803819652,4.60332882,2715.3,2715.2,0.97868468]
[1646803820252,8.10332882,2715.3,2715.2,0.97868468]
[1646803820453,4.60332882,2715.3,2715.2,0.97868468]
[1646803824299,3.4323056,2715.3,2715.2,0.97868468]
[1646803825299,1.7161528,2715.3,2715.2,0.97868468]
[1646803825502,1.7161528,2715.3,2715.2,1.30373191]
[1646803825700,1.82205985,2715.3,2715.2,1.30373191]
[1646803827848,1.82205985,2715.3,2715.2,1.60373191]
[1646803829853,1.82205985,2715.3,2715.2,1.30373191]
[1646803830109,1.82205985,2715.3,2715.2,1.20373191]
[1646803831104,1.706771,2715.3,2715.2,1.20373191]
[1646803831302,0.10590705,2715.3,2715.2,1.20373191]
[1646803831506,1.706771,2715.3,2715.2,1.20373191]
[1646803836561,1.706771,2715.3,2715.2,1.19768936]
[1646803836968,1.706771,2715.3,2715.2,2.41832936]
[1646803837159,0.18588513,2716.2,2715.4,0.50583228]
[1646803837359,1.17322434,2716.1,2715.6,0.50583228]
[1646803837603,0.18588513,2716.2,2715.8,0.50583228]
[1646803837802,0.18588513,2716.2,2715.4,0.50583228]
[1646803837803,0.1841,2716.2,2715.4,0.50583228]
[1646803838002,0.1841,2716.2,2715.3,4.6619]
[1646803838003,0.18588549,2716.2,2715.6,0.50583228]
[1646803838202,0.18588549,2716.2,2715.8,0.50583228]
[1646803838403,0.18588549,2716.2,2716.0,0.50583228]
[1646803838602,0.00178549,2716.2,2716.0,0.50583228]
[1646803838802,1.17364442,2716.2,2715.4,0.50583228]
[1646803839003,0.00714161,2716.4,2715.6,0.50583228]
[1646803839206,0.00196112,2716.2,2715.8,0.50583228]
[1646803839404,1.17561382,2716.2,2716.0,0.50583228]
[1646803839608,0.00196112,2716.2,2716.0,0.50583228]
[1646803839806,0.00196112,2716.2,2716.1,0.50583228]
[1646803840007,1.17377989,2716.5,2716.1,0.50583228]
[1646803840408,0.00196112,2716.2,2716.1,0.50583228]
[1646803840811,0.00196112,2716.2,2716.1,0.80583228]
[1646803841011,0.00196112,2716.2,2716.1,1.12984704]
[1646803841208,0.00196112,2716.2,2716.1,1.32404704]
[1646803841655,3.7242,2717.1,2716.4,0.50583228]
[1646803841859,0.0078433,2716.7,2716.4,0.50583228]
[1646803842056,0.0078433,2716.7,2716.6,0.50583228]
[1646803842454,1.17473842,2716.7,2716.6,0.50583228]
[1646803842655,1.17473842,2717.1,2716.6,0.50583228]
[1646803842854,0.00158232,2716.7,2716.6,0.50583228]
[1646803843054,0.00158232,2716.7,2716.6,0.82969773]
[1646803843253,0.00158232,2716.7,2716.1,0.50583228]
[1646803843455,0.00158232,2716.7,2716.3,0.50583228]
[1646803843756,1.17473842,2717.0,2715.9,1.8184]
[1646803843757,0.92057,2716.9,2716.5,0.50583228]
[1646803843954,1.36022074,2716.8,2716.5,0.50583228]
[1646803844154,1.17473842,2716.7,2716.5,0.50583228]
[1646803844359,1.17473842,2716.7,2716.6,0.50583228]
[1646803844955,1.84823358,2716.7,2716.6,0.50583228]
[1646803845202,0.28703553,2716.1,2715.9,1.1508]
[1646803845405,0.28703553,2716.1,2716.0,0.33384143]
[1646803845603,1.45396227,2716.1,2715.7,0.33384143]
[1646803845803,1.16692674,2716.0,2715.7,0.33384143]
[1646803846204,1.16692674,2716.0,2715.8,0.33384143]
[1646803846406,1.16692674,2716.0,2715.9,0.33384143]
[1646803846604,0.28703553,2716.1,2715.4,0.33384143]
[1646803847007,0.28703553,2716.1,2715.5,0.1841]
[1646803847204,0.28703553,2716.1,2715.6,0.33384143]
[1646803847404,1.16692321,2716.0,2715.6,0.33384143]
[1646803847604,0.28703553,2716.1,2715.6,0.63384143]
[1646803847804,0.28703553,2716.1,2715.7,0.33384143]
[1646803848005,1.1678687,2716.0,2715.7,0.33384143]
[1646803848956,0.28703553,2716.1,2715.7,0.33384143]
[1646803849758,0.28703553,2716.1,2715.7,0.51794143]
[1646803849956,0.28703553,2716.1,2715.8,0.33384143]
[1646803850158,0.28703553,2716.1,2715.9,0.33384143]
[1646803850360,0.28703553,2716.1,2716.0,0.33384143]
[1646803850561,0.28703553,2716.1,2715.7,0.33384143]
[1646803851560,1.16745558,2716.0,2715.7,0.33384143]
[1646803851757,0.28703553,2716.1,2715.7,0.33384143]
[1646803851958,1.16742562,2716.0,2715.7,0.33384143]
[1646803852360,1.16742562,2716.0,2715.8,0.33384143]
[1646803852599,0.28703553,2716.1,2715.9,0.33384143]
[1646803852800,1.16736447,2716.0,2715.4,0.67334948]
[1646803853100,1.16736447,2716.0,2715.4,1.00731076]
[1646803854105,1.16736447,2716.0,2715.4,5.42789596]
[1646803854406,0.28703553,2716.1,2715.5,1.00731076]
[1646803854808,0.28703553,2716.1,2715.6,1.0]
[1646803855006,0.28703553,2716.1,2715.7,0.33396128]
[1646803855205,0.28703553,2716.1,2715.8,0.33396128]
[1646803855405,0.28703553,2716.1,2715.9,0.33396128]
[1646803855604,0.28703553,2716.1,2716.0,0.33396128]
[1646803855805,0.28703553,2716.1,2715.5,1.00731076]
[1646803856006,0.28703553,2716.1,2715.6,0.33396128]
[1646803856206,0.28703553,2716.1,2715.7,0.33396128]
[1646803856462,0.28703553,2716.1,2715.8,0.33396128]
[1646803856662,0.28703553,2716.1,2715.9,0.33396128]
[1646803856862,0.28703553,2716.1,2716.0,0.33396128]
[1646803857265,0.28703553,2716.1,2715.5,1.00731076]
[1646803857467,0.28703553,2716.1,2715.5,2.00731076]
[1646803857668,0.28703553,2716.1,2715.6,1.00731076]
[1646803857865,0.28703553,2716.1,2715.7,0.33396128]
[1646803858067,0.28703553,2716.1,2715.8,0.33396128]
[1646803858266,0.28703553,2716.1,2715.9,0.33396128]
[1646803858465,0.28703553,2716.1,2716.0,0.33396128]
[1646803858670,1.45242655,2716.1,2715.5,1.00731076]
[1646803858866,0.28703553,2716.1,2715.6,0.33396128]
[1646803859065,0.28703553,2716.1,2715.7,0.33396128]
[1646803859265,0.28703553,2716.1,2715.3,1.1781]
[1646803859266,0.28703553,2716.1,2715.8,0.33396128]
[1646803859465,0.28703553,2716.1,2715.9,0.33396128]
[1646803859668,0.28703553,2716.1,2716.0,0.33396128]
[1646803860307,0.28703553,2716.1,2715.4,2.22787456]
[1646803860308,1.45247087,2716.1,2715.4,2.22787456]
[1646803860705,0.28703553,2716.1,2715.5,1.00731076]
[1646803861409,0.28703553,2716.1,2715.5,1.92788076]
[1646803861607,0.28703553,2716.1,2715.6,0.33396128]
[1646803861811,0.28703553,2716.1,2715.7,0.33396128]
[1646803862007,0.28703553,2716.1,2715.5,0.33396128]
[1646803863610,0.28703553,2716.1,2715.5,4.50731076]
[1646803863862,0.28703553,2716.1,2715.6,1.30731076]
[1646803864061,0.28703553,2716.1,2715.7,1.00731076]
[1646803864259,0.28703553,2716.1,2715.8,0.33396128]
[1646803864460,0.28703553,2716.1,2715.9,0.33396128]
[1646803864660,0.28703553,2716.1,2716.0,0.33396128]
[1646803867814,0.28703553,2716.1,2715.9,0.33396128]
[1646803868211,0.28703553,2716.1,2715.9,1.00731076]
[1646803869018,0.28703553,2716.1,2715.9,1.92774076]
[1646803869218,0.28703553,2716.1,2716.0,0.33396128]
[1646803870523,1.45195726,2716.1,2716.0,0.33396128]
[1646803870720,1.45195726,2716.1,2715.6,0.33396128]
[1646803870922,1.16604716,2716.0,2715.7,0.33396128]
[1646803871121,1.16604716,2716.0,2715.8,0.33396128]
[1646803871362,6.0,2715.5,2715.0,1.0]
[1646803871656,1.12441361,2715.7,2715.2,0.00610338]
[1646803871657,4.66604716,2715.4,2715.2,0.00610338]
[1646803871856,4.66604716,2715.3,2715.2,0.00610338]
[1646803872059,1.16604716,2715.3,2715.2,0.00610338]
[1646803872261,1.16604716,2715.3,2715.2,0.30448324]
[1646803872460,1.16604716,2715.5,2715.2,0.29837986]
[1646803872660,3.5,2715.4,2715.0,1.0]
[1646803872863,1.16604716,2715.3,2715.1,0.32318288]
[1646803873061,1.16604716,2715.3,2715.2,0.31707949]
[1646803873462,4.66604716,2715.3,2715.2,0.31707949]
[1646803873662,1.16604716,2715.3,2715.2,0.31707949]
[1646803873962,4.66604716,2715.3,2715.1,0.32318288]
[1646803874161,3.5,2715.3,2715.2,0.31707949]
[1646803874363,1.1848759,2715.3,2715.2,0.31707949]
[1646803874761,1.1848759,2715.4,2715.2,0.31707949]
[1646803874961,1.1848759,2715.3,2715.2,0.31707949]
[1646803875203,1.1848759,2715.4,2715.2,0.31707949]
[1646803875407,1.1848759,2715.4,2715.3,0.31707949]
[1646803875604,1.1848759,2715.6,2715.3,0.31707949]
[1646803875803,1.1848759,2715.6,2715.4,0.31707949]
[1646803876007,1.1848759,2715.6,2715.5,0.31707949]
[1646803876206,1.1848759,2715.6,2715.0,1.0]
[1646803876406,1.1848759,2715.6,2715.2,0.00643395]
[1646803876607,1.1848759,2715.6,2715.3,0.31668691]
[1646803877608,3.5,2715.5,2715.4,0.31668691]
[1646803877809,4.6848759,2715.5,2715.4,0.31668691]
[1646803878013,4.6848759,2715.5,2715.3,0.31668691]
[1646803878209,1.12441361,2715.7,2715.4,0.31668691]
[1646803878210,3.5,2715.6,2715.4,0.31668691]
[1646803878411,1.36804325,2715.5,2715.2,0.00643395]
[1646803878611,1.18394325,2715.4,2715.3,0.31659906]
[1646803879957,0.18394325,2715.4,2715.3,0.31659906]
[1646803880259,0.18394325,2715.4,2715.2,0.00619696]
[1646803880260,0.1841,2715.5,2715.2,0.00619696]
[1646803880663,1.84234,2715.4,2715.2,0.00619696]
[1646803880858,3.5,2715.3,2715.2,0.00619696]
[1646803881058,3.6841,2715.3,2715.2,0.00619696]
[1646803881260,0.1841,2715.3,2715.2,0.01239392]
[1646803881460,0.1841,2715.7,2715.2,0.00619696]
[1646803881658,3.6841,2715.8,2715.2,0.00619696]
[1646803881859,2.12803334,2715.9,2715.2,0.00619696]
[1646803882061,2.12803334,2715.9,2715.0,1.0]
[1646803882259,1.1408,2715.9,2715.0,1.0]
[1646803882462,0.1841,2715.8,2715.2,0.00610043]
[1646803882731,1.3249,2715.9,2715.2,0.00610043]
[1646803882931,1.1408,2715.9,2715.2,0.00610043]
[1646803883334,1.1408,2715.9,2715.0,1.0]
[1646803883531,3.5,2715.8,2715.2,0.00610043]
[1646803883731,1.1408,2715.9,2715.2,0.00610043]
[1646803883931,3.5,2715.8,2715.2,0.00610043]
[1646803884531,3.5,2715.8,2715.0,1.0]
[1646803884930,3.5,2715.8,2715.2,0.00610043]
[1646803885734,3.5,2715.8,2715.0,1.0]
[1646803885939,3.5,2715.8,2715.2,0.0062157]
[1646803886958,3.5,2715.8,2715.0,1.0]
[1646803887159,3.5,2715.8,2715.2,0.0062157]
[1646803887358,1.1408,2715.9,2715.2,0.0062157]
[1646803887558,3.5,2715.8,2715.2,0.0062157]
[1646803887959,4.42101,2715.8,2715.2,0.0062157]
[1646803888159,4.42101,2715.8,2715.0,1.0]
[1646803888360,4.42101,2715.8,2715.2,0.0062157]
[1646803889261,4.42101,2715.8,2715.0,1.0]
[1646803889862,4.42101,2715.8,2715.2,0.00621172]
[1646803890324,0.1839,2715.8,2715.2,0.00621172]
[1646803890524,0.1839,2715.8,2715.0,1.0]
[1646803890525,3.6839,2715.8,2715.0,1.0]
[1646803890724,3.6839,2715.8,2715.2,0.00621172]
[1646803891727,0.1839,2715.8,2715.0,1.0]
[1646803891929,0.1839,2715.8,2715.2,0.00621172]
[1646803891930,0.09485705,2715.8,2715.2,0.00621172]
[1646803892927,0.09485705,2715.8,2715.1,0.67497503]
[1646803893130,0.09485705,2715.8,2715.2,0.00621198]
[1646803893330,0.09485705,2715.8,2715.3,0.9207338]
[1646803893632,0.09485705,2715.8,2715.3,1.2207338]
[1646803894274,0.09485705,2715.8,2715.3,0.3]
[1646803894675,0.09485705,2715.8,2715.2,0.006212]
[1646803895275,0.09485705,2715.8,2715.1,0.97497503]
[1646803895675,0.09485705,2715.8,2715.2,0.00621198]
[1646803896478,0.09485705,2715.8,2715.0,1.97497503]
[1646803896878,0.09485705,2715.8,2715.2,0.00621196]
[1646803897707,0.09485705,2715.8,2715.0,1.97497503]
[1646803898107,0.09485705,2715.8,2715.2,0.00621196]
[1646803900213,0.92107,2715.7,2715.0,1.0]
[1646803900415,3.5,2715.6,2715.0,1.0]
[1646803900715,1.1394089,2715.5,2715.2,0.00611967]
[1646803900913,1.1394089,2715.5,2715.3,0.36103338]
[1646803901363,3.5,2715.4,2715.3,0.36103338]
[1646803901556,3.5,2715.4,2715.0,1.0]
[1646803901557,1.1394089,2715.4,2715.2,0.00611964]
[1646803901757,3.5,2715.6,2715.3,0.36103338]
[1646803901958,1.12997647,2715.5,2715.4,0.36103338]
[1646803902160,1.12997647,2715.5,2715.2,0.00611964]
[1646803902358,1.12997647,2715.5,2715.3,0.36103338]
[1646803902558,1.12997647,2715.5,2715.4,0.36103338]
[1646803902758,1.12997647,2715.5,2715.2,0.00611966]
[1646803902963,1.12997647,2715.5,2715.3,0.36103338]
[1646803903164,1.12997647,2715.5,2715.4,0.36103338]
[1646803903466,0.55269117,2715.6,2715.4,0.36103338]
[1646803903663,0.55269117,2715.6,2715.5,0.36103338]
[1646803904064,1.66413211,2715.6,2715.5,0.36103338]
[1646803904263,1.66413211,2715.6,2715.2,0.00621507]
[1646803904264,5.16413211,2715.6,2715.2,0.00621507]
[1646803904465,1.11144094,2715.5,2715.3,0.36103338]
[1646803904664,1.11144094,2715.5,2715.4,0.36103338]
[1646803904864,1.11144094,2715.5,2715.2,0.00621507]
[1646803904865,4.61144094,2715.5,2715.2,0.00621507]
[1646803905116,3.5,2715.5,2715.3,0.36103338]
[1646803905306,3.5,2715.5,2715.4,0.36103338]
[1646803905508,4.61128979,2715.5,2715.4,0.36103338]
[1646803905907,4.61128979,2715.5,2715.2,0.00621506]
[1646803906108,1.11128979,2715.4,2715.3,0.36103338]
[1646803907010,1.11128979,2715.4,2715.2,0.00621507]
[1646803907211,1.11128979,2715.4,2715.3,0.36103338]
[1646803907412,1.11128979,2715.4,2715.1,0.36103338]
[1646803907611,1.11128979,2715.4,2715.2,0.36724511]